fUST/lending_fUST_20250727
["ID","MTS","AMOUNT","RATE_DAILY","PERIOD"]
[375310873,1753623051339,-460.0,0.00020273,2]
[375310874,1753623051348,-460.0,0.00020547,2]
[375310875,1753623051358,-460.0,0.00020547,2]
[375310876,1753623051367,-460.0,0.00020821,2]
[375310877,1753623051376,-155.2,0.00021095,2]
[375310878,1753623051386,-174.58,0.00022956,2]
[375310879,1753623051395,-174.58,0.00023434,2]
[375310880,1753623051404,-174.58,0.00023912,2]
[375310881,1753623051414,-1484.05,0.00024109,2]
[375310882,1753623051423,-1484.05,0.00024383,2]
[375310883,1753623051432,-6270.71848973,0.000245,4]
[375310884,1753623051444,-97467.85037516,0.000245,4]
[375310885,1753623051456,-23383.31542617,0.000245,4]
[375310886,1753623051468,-1045.36510411,0.000245,4]
[375310887,1753623051479,-2008.19839004,0.000245,4]
[375310888,1753623051531,-460.0,0.00019178,2]
[375310889,1753623051540,-2.75695184,0.0002,2]
[375310890,1753623051553,-431.15,0.0002,2]
[375310891,1753623051566,-26.09304816,0.0002,2]
[375310892,1753623051575,-666.91954407,0.0002082,2]
[375310893,1753623051585,-174.58,0.0002439,2]
[375310894,1753623051594,-201263.64952198,0.000245,4]
[375310895,1753623051610,-777.17506577,0.000245,4]
[375310896,1753623051621,-7891.50604208,0.000245,4]
[375310897,1753623051703,-436.68438848,0.00022013,2]
[375310898,1753623052053,-230.23515559,0.00022013,2]
[375310899,1753623052063,-666.91954407,0.00023207,2]
[375310900,1753623052072,-13853.72530035,0.000245,4]
[375310901,1753623119385,396.379308,0.00013699,2]
[375310903,1753623176576,-150.0,0.00018566,2]
[375310906,1753623251798,150.0,0.00018474,2]
[375310907,1753623252775,-310.0,0.00018796,2]
[375310908,1753623256891,-160.36948606,0.00018796,2]
[375310909,1753623331342,150.0,0.00018465,2]
[375310910,1753623409768,150.0,0.00018188,2]
[375310911,1753623446959,4529.63051394,0.0001851,2]
[375310912,1753623490101,150.0,0.00018207,2]
[375310914,1753623564849,150.0,0.00018193,2]
[375310917,1753623644462,150.0,0.00018214,2]
[375310918,1753623722638,150.0,0.00018211,2]
[375310919,1753623799839,150.0,0.00018209,2]
[375310922,1753623876834,150.0,0.00018194,2]
[375310924,1753623951272,150.0,0.0001822,2]
[375310926,1753624025998,150.0,0.00018216,2]
[375310928,1753624051137,-150.0,0.00019054,2]
[375310929,1753624051158,-224.56282899,0.00019054,2]
[375310931,1753624098180,150.0,0.00018219,2]
[375310934,1753624164348,384.565747,0.00013699,2]
[375310936,1753624171387,150.0,0.00018214,2]
[375310938,1753624229760,11078.18588297,0.00018121,2]
[375310939,1753624229784,13821.81411703,0.00018121,2]
[375310958,1753624232612,-552.3362467,0.000189,2]
[375310959,1753624232624,-594.75193305,0.000189,2]
[375310960,1753624232633,-236.43717101,0.00019054,2]
[375310962,1753624232643,-165.27705538,0.00019078,2]
[375310964,1753624232652,-7180.73424844,0.00019078,2]
[375310972,1753624232729,-397.73741614,0.00019078,2]
[375310974,1753624232741,-102.85759386,0.00019086,2]
[375311208,1753624238576,-500.0,0.00019086,2]
[375311220,1753624238691,-461.14240614,0.00019086,2]
[375311222,1753624238703,-150.0,0.00019087,2]
[375311224,1753624238713,-300.0,0.00019177,2]
[375311226,1753624238722,-460.0,0.00019178,2]
[375311228,1753624238734,-472.04472605,0.00019178,2]
[375311230,1753624238743,-460.0,0.00019178,2]
[375311232,1753624238752,-460.0,0.00019178,2]
[375311234,1753624238761,-460.0,0.00019178,2]
[375311236,1753624238771,-460.0,0.00019178,2]
[375311237,1753624238780,-282.43949816,0.00019178,2]
[375311239,1753624238790,-451.14269936,0.00019178,2]
[375311241,1753624238799,-460.0,0.00019178,2]
[375311243,1753624238809,-460.0,0.00019178,2]
[375311245,1753624238818,-460.0,0.00019178,2]
[375311247,1753624238828,-460.0,0.00019178,2]
[375311249,1753624238838,-1092.22,0.00019178,2]
[375311251,1753624238847,-460.0,0.00019178,2]
[375311253,1753624238856,-460.0,0.00019178,2]
[375311255,1753624238866,-159.58026671,0.00019178,2]
[375311257,1753624238876,-460.0,0.00019178,2]
[375311259,1753624238886,-460.0,0.00019178,2]
[375311261,1753624238895,-257.57,0.00019178,2]
[375311263,1753624238904,-460.0,0.00019178,2]
[375311265,1753624238914,-460.0,0.00019178,2]
[375311267,1753624238923,-460.0,0.00019178,2]
[375311269,1753624238933,-273.6268,0.00019178,2]
[375311271,1753624238942,-460.0,0.00019178,2]
[375311273,1753624238953,-603.44,0.00019178,2]
[375311276,1753624238963,-460.0,0.00019178,2]
[375311277,1753624238972,-540.05,0.00019178,2]
[375311279,1753624238981,-460.0,0.00019178,2]
[375311281,1753624238990,-460.0,0.00019178,2]
[375311283,1753624238999,-460.0,0.00019178,2]
[375311285,1753624239009,-460.0,0.00019178,2]
[375311287,1753624239018,-460.0,0.00019178,2]
[375311289,1753624239028,-460.0,0.00019178,2]
[375311291,1753624239037,-546.66,0.00019178,2]
[375311311,1753624239214,-460.0,0.00019178,2]
[375311313,1753624239224,-250.38,0.00019178,2]
[375311315,1753624239233,-460.0,0.00019178,2]
[375311317,1753624239243,-160.36948606,0.00019178,2]
[375311319,1753624239252,-460.0,0.00019178,2]
[375311321,1753624239261,-460.0,0.00019178,2]
[375311323,1753624239271,-544.86,0.00019178,2]
[375311325,1753624239281,-460.0,0.00019178,2]
[375311328,1753624239291,-982.38,0.00019178,2]
[375311329,1753624239302,-460.0,0.00019178,2]
[375311331,1753624239312,-460.0,0.00019178,2]
[375311333,1753624239321,-460.0,0.00019178,2]
[375311335,1753624239330,-460.0,0.00019178,2]
[375311337,1753624239339,-460.0,0.00019178,2]
[375311339,1753624239349,-460.0,0.00019178,2]
[375311341,1753624239359,-460.0,0.00019178,2]
[375311343,1753624239368,-460.0,0.00019178,2]
[375311345,1753624239377,-460.0,0.00019178,2]
[375311347,1753624239387,-460.0,0.00019178,2]
[375311349,1753624239396,-460.0,0.00019178,2]
[375311351,1753624239405,-460.0,0.00019178,2]
[375311353,1753624239415,-460.0,0.00019178,2]
[375311355,1753624239424,-460.0,0.00019178,2]
[375311357,1753624239433,-222.40354,0.00019178,2]
[375311359,1753624239442,-460.0,0.00019451,2]
[375311361,1753624239452,-460.0,0.00019451,2]
[375311363,1753624239461,-465.24789958,0.00019452,2]
[375311365,1753624239471,-460.0,0.00019452,2]
[375311367,1753624239480,-460.0,0.00019452,2]
[375311369,1753624239490,-460.0,0.00019452,2]
[375311371,1753624239499,-460.0,0.00019452,2]
[375311373,1753624239509,-460.0,0.00019452,2]
[375311375,1753624239518,-460.0,0.00019452,2]
[375311377,1753624239527,-460.0,0.00019452,2]
[375311379,1753624239537,-1092.22,0.00019452,2]
[375311381,1753624239548,-460.0,0.00019452,2]
[375311383,1753624239557,-460.0,0.00019452,2]
[375311385,1753624239567,-460.0,0.00019452,2]
[375311387,1753624239577,-460.0,0.00019452,2]
[375311389,1753624239587,-578.67,0.00019452,2]
[375311391,1753624239596,-460.0,0.00019452,2]
[375311393,1753624239605,-253.97620173,0.00019452,2]
[375311394,1753624239615,-603.44,0.00019452,2]
[375311396,1753624239624,-460.0,0.00019452,2]
[375311398,1753624239634,-362.79,0.00019452,2]
[375311401,1753624239644,-460.0,0.00019452,2]
[375311403,1753624239654,-460.0,0.00019452,2]
[375311404,1753624239667,-460.0,0.00019452,2]
[375311406,1753624239677,-460.0,0.00019452,2]
[375311409,1753624239688,-546.66,0.00019452,2]
[375311410,1753624239699,-460.0,0.00019452,2]
[375311413,1753624239711,-460.0,0.00019452,2]
[375311414,1753624239721,-460.0,0.00019452,2]
[375311417,1753624239731,-982.38,0.00019452,2]
[375311418,1753624239743,-460.0,0.00019452,2]
[375311421,1753624239753,-233.53,0.00019452,2]
[375311422,1753624239762,-460.0,0.00019452,2]
[375311424,1753624239771,-460.0,0.00019452,2]
[375311426,1753624239781,-460.0,0.00019452,2]
[375311429,1753624239791,-460.0,0.00019452,2]
[375311430,1753624239801,-460.0,0.00019452,2]
[375311432,1753624239811,-460.0,0.00019452,2]
[375311434,1753624239821,-460.0,0.00019452,2]
[375311436,1753624239831,-460.0,0.00019452,2]
[375311439,1753624239841,-460.0,0.00019725,2]
[375311441,1753624239851,-460.0,0.00019725,2]
[375311442,1753624239860,-528.5,0.00019726,2]
[375311444,1753624239870,-460.0,0.00019726,2]
[375311446,1753624239880,-460.0,0.00019726,2]
[375311448,1753624239890,-460.0,0.00019726,2]
[375311450,1753624239900,-1092.22,0.00019726,2]
[375311452,1753624239910,-259.84,0.00019726,2]
[375311454,1753624239920,-460.0,0.00019726,2]
[375311456,1753624239930,-460.0,0.00019726,2]
[375311459,1753624239941,-460.0,0.00019726,2]
[375311461,1753624239951,-460.0,0.00019726,2]
[375311464,1753624239961,-603.44,0.00019726,2]
[375311466,1753624239971,-460.0,0.00019726,2]
[375311468,1753624239981,-306.6,0.00019726,2]
[375311471,1753624239992,-460.0,0.00019726,2]
[375311475,1753624240003,-460.0,0.00019726,2]
[375311478,1753624240013,-460.0,0.00019726,2]
[375311480,1753624240022,-546.66,0.00019726,2]
[375311485,1753624240035,-460.0,0.00019726,2]
[375311486,1753624240047,-460.0,0.00019726,2]
[375311489,1753624240057,-460.0,0.00019726,2]
[375311492,1753624240067,-982.38,0.00019726,2]
[375311495,1753624240077,-460.0,0.00019726,2]
[375311499,1753624240087,-460.0,0.00019726,2]
[375311501,1753624240096,-460.0,0.00019726,2]
[375311504,1753624240106,-460.0,0.00019726,2]
[375311507,1753624240117,-460.0,0.00019726,2]
[375311511,1753624240128,-460.0,0.00019726,2]
[375311514,1753624240138,-460.0,0.00019726,2]
[375311518,1753624240148,-150.0,0.0001992,2]
[375311520,1753624240157,-477.96,0.00019999,2]
[375311523,1753624240168,-460.0,0.00019999,2]
[375311525,1753624240177,-172.5,0.0002,2]
[375311527,1753624240187,-1092.22,0.0002,2]
[375311529,1753624240196,-460.0,0.0002,2]
[375311531,1753624240207,-460.0,0.0002,2]
[375311533,1753624240217,-460.0,0.0002,2]
[375311535,1753624240226,-603.44,0.0002,2]
[375311537,1753624240236,-460.0,0.0002,2]
[375311538,1753624240246,-460.0,0.0002,2]
[375311539,1753624240255,-460.0,0.0002,2]
[375311540,1753624240265,-460.0,0.0002,2]
[375311541,1753624240275,-546.66,0.0002,2]
[375311543,1753624240284,-460.0,0.0002,2]
[375311545,1753624240294,-460.0,0.0002,2]
[375311547,1753624240303,-460.0,0.0002,2]
[375311549,1753624240314,-982.38,0.0002,2]
[375311551,1753624240324,-460.0,0.0002,2]
[375311553,1753624240334,-608.03,0.0002,2]
[375311555,1753624240343,-460.0,0.0002,2]
[375311557,1753624240353,-460.0,0.0002,2]
[375311559,1753624240363,-460.0,0.0002,2]
[375311561,1753624240373,-460.0,0.0002,2]
[375311563,1753624240383,-460.0,0.0002,2]
[375311565,1753624240393,-165.27705536,0.00020183,2]
[375311567,1753624240403,-384.565747,0.00020187,2]
[375311569,1753624240412,-160.0,0.00020257,2]
[375311571,1753624240422,-1092.22,0.00020273,2]
[375311573,1753624240431,-460.0,0.00020273,2]
[375311575,1753624240441,-167.06,0.00020273,2]
[375311577,1753624240450,-460.0,0.00020273,2]
[375311579,1753624240459,-603.44,0.00020273,2]
[375311581,1753624240468,-460.0,0.00020273,2]
[375311583,1753624240478,-445.2,0.00020273,2]
[375311585,1753624240488,-460.0,0.00020273,2]
[375311587,1753624240497,-460.0,0.00020273,2]
[375311589,1753624240507,-546.66,0.00020273,2]
[375311591,1753624240517,-460.0,0.00020273,2]
[375311593,1753624240532,-460.0,0.00020273,2]
[375311595,1753624240543,-460.0,0.00020273,2]
[375311598,1753624240554,-982.38,0.00020273,2]
[375311601,1753624240563,-508.39,0.00020273,2]
[375311604,1753624240573,-588.39,0.00020273,2]
[375311606,1753624240582,-460.0,0.00020273,2]
[375311609,1753624240592,-460.0,0.00020273,2]
[375311611,1753624240601,-460.0,0.00020273,2]
[375311614,1753624240611,-460.0,0.00020273,2]
[375311617,1753624240622,-460.0,0.00020273,2]
[375311619,1753624240631,-500.0,0.00020412,2]
[375311622,1753624240640,-1092.22,0.00020547,2]
[375311624,1753624240650,-460.0,0.00020547,2]
[375311628,1753624240662,-460.0,0.00020547,2]
[375311632,1753624240671,-603.44,0.00020547,2]
[375311634,1753624240681,-460.0,0.00020547,2]
[375311637,1753624240690,-460.0,0.00020547,2]
[375311639,1753624240700,-460.0,0.00020547,2]
[375311643,1753624240711,-546.66,0.00020547,2]
[375311647,1753624240721,-460.0,0.00020547,2]
[375311650,1753624240731,-460.0,0.00020547,2]
[375311653,1753624240742,-460.0,0.00020547,2]
[375311658,1753624240753,-982.38,0.00020547,2]
[375311660,1753624240762,-460.0,0.00020547,2]
[375311662,1753624240772,-460.0,0.00020547,2]
[375311665,1753624240782,-460.0,0.00020547,2]
[375311668,1753624240792,-460.0,0.00020547,2]
[375311670,1753624240802,-460.0,0.00020547,2]
[375311673,1753624240811,-150.0,0.00020786,2]
[375311675,1753624240821,-260.0,0.00020805,2]
[375311678,1753624240830,-1092.22,0.00020821,2]
[375311681,1753624240840,-460.0,0.00020821,2]
[375311684,1753624240850,-460.0,0.00020821,2]
[375311686,1753624240860,-603.44,0.00020821,2]
[375311689,1753624240869,-460.0,0.00020821,2]
[375311692,1753624240879,-460.0,0.00020821,2]
[375311694,1753624240889,-460.0,0.00020821,2]
[375311697,1753624240899,-546.66,0.00020821,2]
[375311700,1753624240908,-460.0,0.00020821,2]
[375311703,1753624240918,-460.0,0.00020821,2]
[375311705,1753624240927,-460.0,0.00020821,2]
[375311708,1753624240937,-982.38,0.00020821,2]
[375311711,1753624240947,-445.11,0.00020821,2]
[375311714,1753624240957,-460.0,0.00020821,2]
[375311716,1753624240966,-460.0,0.00020821,2]
[375311719,1753624240976,-379.06,0.00020821,2]
[375311722,1753624240985,-420.0,0.00020899,2]
[375311725,1753624240995,-501.54785504,0.000209,4]
[375311727,1753624241004,-501.54785475,0.00021038,4]
[375311730,1753624241014,-1092.22,0.00021095,2]
[375311733,1753624241023,-460.0,0.00021095,2]
[375311736,1753624241033,-460.0,0.00021095,2]
[375311738,1753624241042,-603.44,0.00021095,2]
[375311740,1753624241052,-460.0,0.00021095,2]
[375311742,1753624241062,-460.0,0.00021095,2]
[375311744,1753624241072,-460.0,0.00021095,2]
[375311746,1753624241082,-546.66,0.00021095,2]
[375311749,1753624241092,-460.0,0.00021095,2]
[375311752,1753624241101,-460.0,0.00021095,2]
[375311755,1753624241111,-460.0,0.00021095,2]
[375311758,1753624241121,-982.38,0.00021095,2]
[375311761,1753624241131,-460.0,0.00021095,2]
[375311764,1753624241140,-460.0,0.00021095,2]
[375311767,1753624241150,-12632.25855046,0.00021107,2]
[375311770,1753624241160,-377.6,0.00021136,4]
[375311773,1753624241170,-385.268,0.00021161,2]
[375311776,1753624241179,-501.54785475,0.00021176,4]
[375311778,1753624241189,-165.27705536,0.00021288,2]
[375311780,1753624241199,-501.54785475,0.00021314,5]
[375311784,1753624241209,-360.0,0.00021353,2]
[375311786,1753624241219,-1092.22,0.00021369,2]
[375311791,1753624241229,-460.0,0.00021369,2]
[375311792,1753624241239,-460.0,0.00021369,2]
[375311797,1753624241248,-603.44,0.00021369,2]
[375311800,1753624241258,-460.0,0.00021369,2]
[375311802,1753624241268,-460.0,0.00021369,2]
[375311804,1753624241277,-460.0,0.00021369,2]
[375311807,1753624241287,-546.66,0.00021369,2]
[375311811,1753624241297,-460.0,0.00021369,2]
[375311813,1753624241306,-460.0,0.00021369,2]
[375311816,1753624241316,-460.0,0.00021369,2]
[375311820,1753624241326,-982.38,0.00021369,2]
[375311823,1753624241337,-460.0,0.00021369,2]
[375311825,1753624241348,-460.0,0.00021369,2]
[375311829,1753624241358,-501.54785475,0.00021452,5]
[375311832,1753624241367,-500.0,0.00021508,2]
[375311835,1753624241377,-377.6,0.00021569,4]
[375311838,1753624241386,-501.54785475,0.0002159,5]
[375311842,1753624241396,-1092.22,0.00021643,2]
[375311843,1753624241405,-460.0,0.00021643,2]
[375311846,1753624241415,-460.0,0.00021643,2]
[375311849,1753624241424,-603.44,0.00021643,2]
[375311853,1753624241434,-460.0,0.00021643,2]
[375311856,1753624241444,-460.0,0.00021643,2]
[375311860,1753624241454,-460.0,0.00021643,2]
[375311862,1753624241464,-546.66,0.00021643,2]
[375311866,1753624241473,-460.0,0.00021643,2]
[375311868,1753624241483,-460.0,0.00021643,2]
[375311870,1753624241493,-460.0,0.00021643,2]
[375311873,1753624241503,-982.38,0.00021643,2]
[375311876,1753624241512,-460.0,0.00021643,2]
[375311879,1753624241522,-460.0,0.00021643,2]
[375311882,1753624241532,-150.0,0.0002168,2]
[375311885,1753624241542,-501.54785475,0.00021728,5]
[375311888,1753624241553,-501.54785475,0.00021866,6]
[375311891,1753624241563,-307.27167015,0.00021901,2]
[375311894,1753624241572,-1092.22,0.00021917,2]
[375311897,1753624241582,-500.0,0.00021917,2]
[375311900,1753624241592,-500.0,0.00021917,2]
[375311903,1753624241602,-500.0,0.00021917,2]
[375311906,1753624241611,-500.0,0.00021917,2]
[375311909,1753624241621,-500.0,0.00021917,2]
[375311912,1753624241630,-500.0,0.00021917,2]
[375311915,1753624241640,-500.0,0.00021917,2]
[375311918,1753624241649,-359.30961583,0.00021917,2]
[375311921,1753624241662,-460.0,0.00021917,2]
[375311924,1753624241671,-460.0,0.00021917,2]
[375311927,1753624241680,-603.44,0.00021917,2]
[375311929,1753624241689,-460.0,0.00021917,2]
[375311932,1753624241700,-460.0,0.00021917,2]
[375311935,1753624241710,-460.0,0.00021917,2]
[375311938,1753624241720,-546.66,0.00021917,2]
[375311942,1753624241730,-460.0,0.00021917,2]
[375311945,1753624241741,-460.0,0.00021917,2]
[375311949,1753624241752,-460.0,0.00021917,2]
[375311951,1753624241762,-982.38,0.00021917,2]
[375311955,1753624241771,-460.0,0.00021917,2]
[375311957,1753624241780,-460.0,0.00021917,2]
[375311959,1753624241790,-153.0,0.00022,2]
[375311962,1753624241800,-724.98,0.00022,7]
[375311965,1753624241809,-377.6,0.00022001,4]
[375311968,1753624241818,-501.54785475,0.00022003,6]
[375311973,1753624241829,-501.54785475,0.00022141,6]
[375311975,1753624241838,-1092.22,0.00022191,2]
[375311978,1753624241847,-460.0,0.00022191,2]
[375311980,1753624241857,-460.0,0.00022191,2]
[375311985,1753624241868,-603.44,0.00022191,2]
[375311987,1753624241877,-460.0,0.00022191,2]
[375311991,1753624241887,-460.0,0.00022191,2]
[375311993,1753624241897,-460.0,0.00022191,2]
[375311994,1753624241906,-546.66,0.00022191,2]
[375311996,1753624241915,-460.0,0.00022191,2]
[375311998,1753624241924,-460.0,0.00022191,2]
[375312001,1753624241934,-460.0,0.00022191,2]
[375312004,1753624241943,-982.38,0.00022191,2]
[375312007,1753624241953,-460.0,0.00022191,2]
[375312010,1753624241962,-460.0,0.00022191,2]
[375312013,1753624241972,-501.54785475,0.00022279,6]
[375312016,1753624241982,-165.27705536,0.00022393,2]
[375312019,1753624241991,-501.54785475,0.00022417,7]
[375312022,1753624242001,-377.6,0.00022433,5]
[375312025,1753624242011,-1092.22,0.00022465,2]
[375312028,1753624242021,-460.0,0.00022465,2]
[375312031,1753624242030,-460.0,0.00022465,2]
[375312034,1753624242040,-603.44,0.00022465,2]
[375312037,1753624242049,-460.0,0.00022465,2]
[375312040,1753624242058,-460.0,0.00022465,2]
[375312043,1753624242067,-460.0,0.00022465,2]
[375312046,1753624242077,-546.66,0.00022465,2]
[375312049,1753624242086,-460.0,0.00022465,2]
[375312052,1753624242095,-460.0,0.00022465,2]
[375312055,1753624242104,-460.0,0.00022465,2]
[375312058,1753624242113,-982.38,0.00022465,2]
[375312061,1753624242122,-460.0,0.00022465,2]
[375312064,1753624242131,-460.0,0.00022465,2]
[375312067,1753624242140,-2502.23,0.00022465,2]
[375312070,1753624242149,-150.0,0.00022553,2]
[375312073,1753624242159,-501.54785475,0.00022555,7]
[375312076,1753624242168,-222.40354,0.00022603,2]
[375312079,1753624242177,-500.0,0.00022604,2]
[375312082,1753624242186,-501.54785475,0.00022693,7]
[375312085,1753624242196,-2328.74,0.000227,7]
[375312088,1753624242206,-1092.22,0.00022739,2]
[375312091,1753624242215,-460.0,0.00022739,2]
[375312094,1753624242224,-460.0,0.00022739,2]
[375312097,1753624242234,-603.44,0.00022739,2]
[375312100,1753624242242,-460.0,0.00022739,2]
[375312103,1753624242252,-460.0,0.00022739,2]
[375312106,1753624242261,-460.0,0.00022739,2]
[375312109,1753624242271,-546.66,0.00022739,2]
[375312112,1753624242280,-460.0,0.00022739,2]
[375312115,1753624242290,-460.0,0.00022739,2]
[375312118,1753624242299,-460.0,0.00022739,2]
[375312121,1753624242309,-982.38,0.00022739,2]
[375312124,1753624242318,-460.0,0.00022739,2]
[375312127,1753624242328,-460.0,0.00022739,2]
[375312130,1753624242337,-587.0,0.00022776,2]
[375312133,1753624242346,-501.54785475,0.00022831,8]
[375312136,1753624242355,-377.6,0.00022866,5]
[375312139,1753624242366,-501.54785475,0.00022969,8]
[375312142,1753624242375,-160.0,0.00023,2]
[375312145,1753624242385,-787.72,0.00023,2]
[375312148,1753624242395,-1092.22,0.00023013,2]
[375312151,1753624242404,-460.0,0.00023013,2]
[375312154,1753624242414,-460.0,0.00023013,2]
[375312156,1753624242423,-603.44,0.00023013,2]
[375312158,1753624242433,-460.0,0.00023013,2]
[375312160,1753624242443,-460.0,0.00023013,2]
[375312162,1753624242452,-427.42,0.00023013,2]
[375312164,1753624242461,-546.66,0.00023013,2]
[375312166,1753624242471,-460.0,0.00023013,2]
[375312168,1753624242480,-470.21,0.00023013,2]
[375312170,1753624242490,-460.0,0.00023013,2]
[375312172,1753624242499,-982.38,0.00023013,2]
[375312174,1753624242509,-460.0,0.00023013,2]
[375312176,1753624242518,-460.0,0.00023013,2]
[375312178,1753624242527,-153.0,0.00023014,7]
[375312180,1753624242537,-516.22,0.00023064,3]
[375312182,1753624242546,-522.95,0.00023064,7]
[375312184,1753624242555,-519.21,0.00023067,7]
[375312186,1753624242564,-511.25,0.00023084,7]
[375312188,1753624242575,-501.54785475,0.00023107,8]
[375312190,1753624242584,-2158.0,0.00023137,2]
[375312192,1753624242593,-969.0,0.00023137,2]
[375312194,1753624242602,-150.0,0.00023137,2]
[375312196,1753624242612,-166.72988604,0.00023164,2]
[375312198,1753624242621,-516.22,0.00023164,6]
[375312200,1753624242630,-522.95,0.00023164,6]
[375312202,1753624242640,-519.21,0.00023167,7]
[375312204,1753624242650,-511.25,0.00023184,3]
[375312206,1753624242661,-501.54785475,0.00023245,8]
[375312208,1753624242671,-178.3051933,0.0002326,2]
[375312210,1753624242680,-516.22,0.00023264,2]
[375312212,1753624242691,-522.95,0.00023264,2]
[375312214,1753624242701,-519.21,0.00023267,2]
[375312216,1753624242711,-511.25,0.00023284,3]
[375312218,1753624242720,-1092.22,0.00023287,2]
[375312220,1753624242730,-460.0,0.00023287,2]
[375312222,1753624242742,-460.0,0.00023287,2]
[375312224,1753624242752,-603.44,0.00023287,2]
[375312226,1753624242762,-460.0,0.00023287,2]
[375312228,1753624242772,-460.0,0.00023287,2]
[375312230,1753624242782,-546.66,0.00023287,2]
[375312232,1753624242791,-460.0,0.00023287,2]
[375312234,1753624242802,-460.0,0.00023287,2]
[375312236,1753624242811,-982.38,0.00023287,2]
[375312238,1753624242821,-460.0,0.00023287,2]
[375312240,1753624242831,-460.0,0.00023287,2]
[375312242,1753624242840,-377.6,0.00023298,5]
[375312244,1753624242850,-516.22,0.00023364,7]
[375312246,1753624242860,-522.95,0.00023364,2]
[375312248,1753624242871,-519.21,0.00023367,7]
[375312251,1753624242881,-501.54785475,0.00023383,9]
[375312266,1753624243026,-511.25,0.00023384,6]
[375312267,1753624243037,-3285.261494,0.00023391,2]
[375312268,1753624243046,-150.0,0.00023418,2]
[375312269,1753624243056,-516.26,0.00023464,7]
[375312270,1753624243066,-522.95,0.00023464,4]
[375312271,1753624243076,-519.21,0.00023467,4]
[375312273,1753624243086,-165.27705536,0.00023497,2]
[375312275,1753624243095,-501.54785475,0.00023521,9]
[375312277,1753624243105,-151.0,0.00023525,2]
[375312279,1753624243116,-151.0,0.00023525,2]
[375312281,1753624243126,-151.0,0.00023525,2]
[375312283,1753624243135,-151.0,0.00023525,2]
[375312285,1753624243146,-151.0,0.00023525,2]
[375312288,1753624243156,-164.544173,0.00023525,2]
[375312290,1753624243165,-502.05411089,0.00023525,2]
[375312292,1753624243176,-151.0,0.00023525,2]
[375312294,1753624243185,-25000.0,0.00023525,2]
[375312296,1753624243196,-151.0,0.00023525,2]
[375312298,1753624243206,-151.0,0.00023525,2]
[375312300,1753624243216,-3801.642,0.00023525,2]
[375312302,1753624243226,-151.0,0.00023525,2]
[375312304,1753624243235,-151.0,0.00023525,2]
[375312306,1753624243245,-20658.09658481,0.00023525,2]
[375312308,1753624243256,-151.0,0.00023525,2]
[375312310,1753624243265,-151.0,0.00023525,2]
[375312312,1753624243276,-151.0,0.00023525,2]
[375312314,1753624243286,-151.0,0.00023525,2]
[375312316,1753624243295,-151.0,0.00023525,2]